fUSD/lending_fUSD_20240902
["ID","MTS","AMOUNT","RATE_DAILY","PERIOD"]
[336934355,1725249043423,-473.23733328,0.0002242,2]
[336934357,1725249043431,-500.0,0.0002242,2]
[336934359,1725249043441,-500.0,0.0002242,2]
[336934361,1725249043450,-500.0,0.0002242,2]
[336934363,1725249043459,-500.0,0.0002242,2]
[336934365,1725249043468,-500.0,0.0002242,2]
[336934367,1725249043477,-500.0,0.0002242,2]
[336934369,1725249043486,-845.07,0.0002242,2]
[336934371,1725249043495,-526.22,0.0002242,2]
[336934372,1725249043504,-500.0,0.0002242,2]
[336934374,1725249043513,-500.0,0.0002242,2]
[336934376,1725249043522,-500.0,0.0002242,2]
[336934378,1725249043531,-500.0,0.0002242,2]
[336934380,1725249043540,-637.47,0.0002242,2]
[336934382,1725249043550,-500.0,0.0002242,2]
[336934384,1725249043559,-500.0,0.0002242,2]
[336934386,1725249043568,-500.0,0.0002242,2]
[336934388,1725249043577,-200.0,0.0002242,2]
[336934390,1725249043586,-500.0,0.0002242,2]
[336934392,1725249043595,-500.0,0.0002242,2]
[336934394,1725249043605,-500.0,0.0002242,2]
[336934396,1725249043614,-500.0,0.0002242,2]
[336934398,1725249043624,-827.93,0.0002242,2]
[336934400,1725249043634,-500.0,0.0002242,2]
[336934402,1725249043645,-500.0,0.0002242,2]
[336934404,1725249043655,-500.0,0.0002242,2]
[336934406,1725249043665,-500.0,0.0002242,2]
[336934408,1725249043675,-500.0,0.0002242,2]
[336934410,1725249043685,-500.0,0.0002242,2]
[336934412,1725249043695,-629.68,0.0002242,2]
[336934414,1725249043707,-922.89,0.0002242,2]
[336934416,1725249043717,-500.0,0.0002242,2]
[336934418,1725249043727,-1053.58,0.0002242,2]
[336934420,1725249043737,-500.0,0.0002242,2]
[336934422,1725249043747,-500.0,0.0002242,2]
[336934424,1725249043757,-336.46415953,0.0002242,2]
[336935122,1725249127895,187.81,0.00026786,120]
[336935123,1725249213007,1000.0,0.00027,120]
[336935124,1725249249888,1001.86,0.00025,60]
[336935125,1725249630328,158.1,0.00026764,120]
[336935131,1725250125409,154.09,0.00024798,120]
[336935145,1725250231913,-319.26,0.00019368,2]
[336935146,1725250231922,-160.31301165,0.00019725,2]
[336935155,1725250238037,-139.68698835,0.00019725,2]
[336935156,1725250238046,-154.09,0.00021256,2]
[336935157,1725250238056,-1000.0,0.00021329,2]
[336935158,1725250238066,-250.0,0.00021349,2]
[336935159,1725250238075,-158.1,0.00021411,2]
[336935160,1725250238085,-187.81,0.00021429,2]
[336935161,1725250238094,-420.0,0.00021484,2]
[336935162,1725250238104,-319.26,0.00021632,2]
[336935163,1725250238117,-182.584374,0.00021845,2]
[336935164,1725250238127,-171.05,0.00021918,2]
[336935165,1725250238137,-150.0,0.00021918,2]
[336935166,1725250238146,-155.15,0.00021918,2]
[336935167,1725250238155,-11064.5861054,0.00022,2]
[336935168,1725250238165,-740.0,0.000223,2]
[336935169,1725250238174,-366.0,0.000223,5]
[336935170,1725250238183,-159.34778388,0.00022319,2]
[336935171,1725250238192,-1212.2143,0.00022321,2]
[336935172,1725250238202,-159.34778387,0.00022369,2]
[336935173,1725250238211,-6571.86536759,0.000224,2]
[336935174,1725250238221,-150.0,0.00022405,2]
[336935175,1725250238230,-150.0,0.00022406,2]
[336935176,1725250238241,-150.0,0.00022406,2]
[336935177,1725250238251,-1545.0,0.00022406,2]
[336935178,1725250238261,-1259.0,0.00022406,2]
[336935179,1725250238270,-930.0,0.00022406,2]
[336935180,1725250238280,-3323.0,0.00022406,2]
[336935181,1725250238290,-405.764,0.00022406,2]
[336935182,1725250238300,-248.0,0.00022406,2]
[336935183,1725250238309,-1144.0,0.00022406,2]
[336935184,1725250238319,-289.0,0.00022406,2]
[336935185,1725250238329,-5854.0,0.00022406,2]
[336935186,1725250238338,-3732.0,0.00022406,2]
[336935187,1725250238348,-1078.0,0.00022406,2]
[336935188,1725250238358,-151.0,0.00022413,7]
[336935189,1725250238368,-151.0,0.00022413,7]
[336935190,1725250238377,-151.0,0.00022413,7]
[336935191,1725250238387,-500.0,0.00022413,2]
[336935192,1725250238397,-266.63878523,0.00022413,2]
[336935194,1725250238406,-500.0,0.00022413,2]
[336935196,1725250238416,-500.0,0.00022413,2]
[336935198,1725250238425,-500.0,0.00022413,2]
[336935199,1725250238434,-500.0,0.00022413,2]
[336935201,1725250238444,-551.5903412,0.00022414,2]
[336935204,1725250238454,-151.0,0.00022414,7]
[336935206,1725250238463,-151.556022,0.00022414,7]
[336935207,1725250238473,-18026.8670415,0.00022414,2]
[336935209,1725250238482,-7718.8055624,0.00022414,2]
[336935211,1725250238491,-151.0,0.00022414,7]
[336935213,1725250238501,-1049.6637032,0.00022414,2]
[336935215,1725250238511,-151.0,0.00022414,7]
[336935217,1725250238521,-151.0,0.00022416,7]
[336935219,1725250238530,-151.0,0.00022416,7]
[336935221,1725250238539,-154.206035,0.00022416,7]
[336935223,1725250238549,-500.0,0.00022417,2]
[336935224,1725250238559,-500.0,0.00022417,2]
[336935226,1725250238569,-500.0,0.00022417,2]
[336935227,1725250238584,-500.0,0.00022417,2]
[336935228,1725250238593,-500.0,0.00022417,2]
[336935229,1725250238602,-158.08861517,0.00022417,2]
[336935230,1725250238621,-151.0,0.00022418,7]
[336935231,1725250238631,-151.0,0.00022418,7]
[336935232,1725250238640,-159.34778387,0.00022418,2]
[336935234,1725250238652,-500.0,0.00022418,2]
[336935236,1725250238662,-500.0,0.00022418,2]
[336935238,1725250238671,-500.0,0.00022418,2]
[336935239,1725250238681,-500.0,0.00022418,2]
[336935240,1725250238690,-500.0,0.00022418,2]
[336935241,1725250238700,-500.0,0.00022419,2]
[336935242,1725250238709,-500.0,0.00022419,2]
[336935243,1725250238719,-834.86,0.00022419,2]
[336935244,1725250238729,-632.79,0.00022419,2]
[336935245,1725250238738,-588.7,0.00022419,2]
[336935246,1725250238747,-500.0,0.00022419,2]
[336935247,1725250238757,-573.77,0.00022419,2]
[336935248,1725250238767,-884.7,0.00022419,2]
[336935249,1725250238778,-500.0,0.00022419,2]
[336935250,1725250238788,-500.0,0.00022419,2]
[336935251,1725250238798,-500.0,0.00022419,2]
[336935252,1725250238807,-610.76,0.00022419,2]
[336935253,1725250238817,-500.0,0.00022419,2]
[336935254,1725250238826,-511.55,0.00022419,2]
[336935255,1725250238835,-500.0,0.00022419,2]
[336935256,1725250238845,-500.0,0.00022419,2]
[336935257,1725250238855,-500.0,0.00022419,2]
[336935258,1725250238867,-500.0,0.00022419,2]
[336935259,1725250238877,-500.0,0.00022419,2]
[336935260,1725250238887,-500.0,0.00022419,2]
[336935261,1725250238898,-500.0,0.00022419,2]
[336935262,1725250238908,-500.0,0.00022419,2]
[336935263,1725250238917,-500.0,0.00022419,2]
[336935264,1725250238926,-500.0,0.00022419,2]
[336935265,1725250238935,-202.83005019,0.00022419,2]
[336935266,1725250238945,-560.68,0.00022419,2]
[336935267,1725250238954,-662.94,0.00022419,2]
[336935268,1725250238963,-500.0,0.00022419,2]
[336935269,1725250238974,-500.0,0.00022419,2]
[336935270,1725250238985,-500.0,0.00022419,2]
[336935271,1725250238995,-500.0,0.00022419,2]
[336935272,1725250239005,-1180.17,0.00022419,2]
[336935273,1725250239014,-500.0,0.00022419,2]
[336935274,1725250239024,-509.59,0.00022419,2]
[336935275,1725250239034,-500.0,0.00022419,2]
[336935276,1725250239044,-500.0,0.00022419,2]
[336935277,1725250239053,-625.94,0.00022419,2]
[336935278,1725250239062,-500.0,0.00022419,2]
[336935279,1725250239072,-500.0,0.00022419,2]
[336935280,1725250239081,-500.0,0.00022419,2]
[336935281,1725250239091,-547.74,0.00022419,2]
[336935282,1725250239100,-500.0,0.00022419,2]
[336935283,1725250239114,-916.68,0.00022419,2]
[336935284,1725250239123,-500.0,0.00022419,2]
[336935285,1725250239132,-589.43,0.00022419,2]
[336935286,1725250239142,-500.0,0.00022419,2]
[336935287,1725250239151,-500.0,0.00022419,2]
[336935288,1725250239160,-500.0,0.00022419,2]
[336935289,1725250239170,-572.69,0.00022419,2]
[336935290,1725250239180,-545.91,0.00022419,2]
[336935291,1725250239189,-500.0,0.00022419,2]
[336935292,1725250239199,-500.0,0.00022419,2]
[336935293,1725250239208,-697.05,0.00022419,2]
[336935294,1725250239218,-500.0,0.00022419,2]
[336935295,1725250239227,-597.85,0.00022419,2]
[336935296,1725250239236,-500.0,0.00022419,2]
[336935297,1725250239245,-500.0,0.00022419,2]
[336935298,1725250239254,-640.14,0.00022419,2]
[336935299,1725250239264,-500.0,0.00022419,2]
[336935300,1725250239273,-828.57,0.00022419,2]
[336935301,1725250239283,-663.31,0.00022419,2]
[336935302,1725250239293,-500.0,0.00022419,2]
[336935303,1725250239302,-500.0,0.00022419,2]
[336935304,1725250239312,-151.0,0.00022419,7]
[336935305,1725250239322,-151.0,0.00022419,7]
[336935306,1725250239331,-151.0,0.00022419,7]
[336935307,1725250239341,-679.72,0.00022419,2]
[336935308,1725250239350,-500.0,0.00022419,2]
[336935309,1725250239362,-500.0,0.00022419,2]
[336935310,1725250239371,-296.50552841,0.00022419,2]
[336935311,1725250239380,-500.0,0.00022419,2]
[336935312,1725250239389,-549.87,0.00022419,2]
[336935313,1725250239400,-517.11,0.00022419,2]
[336935314,1725250239409,-500.0,0.00022419,2]
[336935315,1725250239418,-500.0,0.00022419,2]
[336935316,1725250239427,-500.0,0.00022419,2]
[336935317,1725250239436,-500.0,0.00022419,2]
[336935318,1725250239445,-687.38,0.00022419,2]
[336935319,1725250239454,-500.0,0.00022419,2]
[336935320,1725250239464,-500.0,0.00022419,2]
[336935321,1725250239473,-500.0,0.00022419,2]
[336935322,1725250239483,-500.0,0.00022419,2]
[336935323,1725250239493,-500.0,0.00022419,2]
[336935324,1725250239503,-500.0,0.00022419,2]
[336935325,1725250239514,-850.57,0.00022419,2]
[336935326,1725250239524,-1018.03,0.00022419,2]
[336935327,1725250239534,-500.0,0.00022419,2]
[336935328,1725250239544,-500.0,0.00022419,2]
[336935329,1725250239553,-590.32,0.00022419,2]
[336935330,1725250239565,-500.0,0.00022419,2]
[336935331,1725250239579,-669.51,0.00022419,2]
[336935332,1725250239588,-500.0,0.00022419,2]
[336935333,1725250239598,-698.01,0.00022419,2]
[336935334,1725250239609,-500.0,0.00022419,2]
[336935335,1725250239619,-500.0,0.00022419,2]
[336935336,1725250239628,-501.39,0.00022419,2]
[336935337,1725250239637,-500.0,0.00022419,2]
[336935338,1725250239647,-500.0,0.00022419,2]
[336935339,1725250239657,-500.0,0.00022419,2]
[336935341,1725250239666,-500.0,0.00022419,2]
[336935342,1725250239676,-1093.83,0.00022419,2]
[336935343,1725250239685,-500.0,0.00022419,2]
[336935344,1725250239694,-500.0,0.00022419,2]
[336935345,1725250239703,-1116.2,0.00022419,2]
[336935346,1725250239712,-500.0,0.00022419,2]
[336935347,1725250239722,-834.39,0.00022419,2]
[336935348,1725250239731,-500.0,0.00022419,2]
[336935349,1725250239740,-500.0,0.00022419,2]
[336935350,1725250239750,-400.48802359,0.00022419,2]
[336935351,1725250239761,-677.93,0.00022419,2]
[336935352,1725250239770,-1132.54,0.00022419,2]
[336935353,1725250239781,-500.0,0.00022419,2]
[336935354,1725250239790,-500.0,0.00022419,2]
[336935355,1725250239799,-500.0,0.00022419,2]
[336935356,1725250239808,-500.0,0.00022419,2]
[336935357,1725250239818,-500.0,0.00022419,2]
[336935358,1725250239826,-739.47,0.00022419,2]
[336935359,1725250239835,-500.0,0.00022419,2]
[336935360,1725250239844,-500.0,0.00022419,2]
[336935362,1725250239853,-500.0,0.00022419,2]
[336935364,1725250239863,-500.0,0.00022419,2]
[336935366,1725250239872,-500.0,0.00022419,2]
[336935368,1725250239881,-512.25,0.00022419,2]
[336935369,1725250239890,-500.0,0.00022419,2]
[336935370,1725250239899,-500.0,0.00022419,2]
[336935371,1725250239908,-500.0,0.00022419,2]
[336935372,1725250239917,-500.0,0.00022419,2]
[336935373,1725250239926,-500.0,0.00022419,2]
[336935374,1725250239935,-877.77,0.00022419,2]
[336935375,1725250239945,-1261.34,0.00022419,2]
[336935376,1725250239954,-606.02,0.00022419,2]
[336935377,1725250239964,-500.0,0.00022419,2]
[336935378,1725250239974,-500.0,0.00022419,2]
[336935379,1725250239984,-500.0,0.00022419,2]
[336935380,1725250239994,-500.0,0.00022419,2]
[336935381,1725250240005,-515.58,0.00022419,2]
[336935382,1725250240017,-617.83,0.00022419,2]
[336935383,1725250240026,-500.0,0.00022419,2]
[336935384,1725250240037,-500.0,0.00022419,2]
[336935385,1725250240047,-500.0,0.00022419,2]
[336935386,1725250240058,-526.74,0.00022419,2]
[336935387,1725250240069,-805.01,0.00022419,2]
[336935388,1725250240080,-500.0,0.00022419,2]
[336935389,1725250240090,-500.0,0.00022419,2]
[336935390,1725250240099,-444.87895028,0.00022419,2]
[336935391,1725250240109,-681.25,0.00022419,2]
[336935392,1725250240118,-418.72809654,0.00022419,2]
[336935393,1725250240127,-500.0,0.00022419,2]
[336935394,1725250240137,-500.0,0.00022419,2]
[336935395,1725250240146,-500.0,0.00022419,2]
[336935396,1725250240156,-847.01,0.00022419,2]
[336935397,1725250240166,-500.0,0.00022419,2]
[336935398,1725250240175,-722.62,0.00022419,2]
[336935399,1725250240184,-500.0,0.00022419,2]
[336935400,1725250240194,-500.0,0.00022419,2]
[336935401,1725250240204,-1218.51,0.00022419,2]
[336935402,1725250240215,-500.0,0.00022419,2]
[336935403,1725250240225,-500.0,0.00022419,2]
[336935404,1725250240235,-500.0,0.00022419,2]
[336935405,1725250240244,-500.0,0.00022419,2]
[336935406,1725250240254,-500.0,0.00022419,2]
[336935407,1725250240264,-500.0,0.00022419,2]
[336935408,1725250240273,-902.26,0.00022419,2]
[336935409,1725250240282,-1172.74,0.00022419,2]
[336935410,1725250240291,-500.0,0.00022419,2]
[336935411,1725250240301,-500.0,0.00022419,2]
[336935412,1725250240310,-500.0,0.00022419,2]
[336935413,1725250240319,-563.45392908,0.00022419,2]
[336935489,1725250241214,-15.03607092,0.00022419,2]
[336935490,1725250241224,-279.63926083,0.00022419,2]
[336935491,1725250241237,-220.36073917,0.00022419,2]
[336935492,1725250241246,-1280.5,0.00022419,2]
[336935493,1725250241255,-500.0,0.00022419,2]
[336935494,1725250241265,-61.38642092,0.00022419,2]
[336935495,1725250241285,-563.31,0.00022419,2]
[336935497,1725250241296,-214.57357908,0.00022419,2]
[336935499,1725250241305,-500.0,0.00022419,2]
[336935501,1725250241314,-500.0,0.00022419,2]
[336935503,1725250241323,-415.21420479,0.00022419,2]
[336935604,1725250243524,-500.0,0.00022413,2]
[336935605,1725250243534,-500.0,0.00022417,2]
[336935606,1725250243543,-123.67153869,0.00022418,2]
[336935608,1725250246157,-376.32846131,0.00022418,2]
[336935609,1725250246167,-84.78579521,0.00022419,2]
[336935610,1725250246176,-787.36,0.00022419,2]
[336935611,1725250246185,-609.96,0.00022419,2]
[336935612,1725250246194,-500.0,0.00022419,2]
[336935613,1725250246203,-500.0,0.00022419,2]
[336935614,1725250246213,-500.0,0.00022419,2]
[336935615,1725250246222,-500.0,0.00022419,2]
[336935616,1725250246231,-500.0,0.00022419,2]
[336935617,1725250246240,-500.0,0.00022419,2]
[336935618,1725250246249,-500.0,0.00022419,2]
[336935619,1725250246259,-500.0,0.00022419,2]
[336935620,1725250246268,-500.0,0.00022419,2]
[336935621,1725250246277,-494.35509025,0.00022419,2]
[336935622,1725250246286,-576.47,0.00022419,2]
[336935623,1725250246295,-500.0,0.00022419,2]
[336935624,1725250246304,-500.0,0.00022419,2]
[336935625,1725250246313,-500.0,0.00022419,2]
[336935626,1725250246322,-500.0,0.00022419,2]
[336935627,1725250246332,-152.55129411,0.00022419,2]
[336935628,1725250246341,-500.0,0.00022419,2]
[336935629,1725250246350,-500.0,0.00022419,2]
[336935630,1725250246359,-585.55,0.00022419,2]
[336935631,1725250246368,-500.0,0.00022419,2]
[336935632,1725250246377,-500.0,0.00022419,2]
[336935633,1725250246386,-1595.66,0.00022419,2]
[336935634,1725250246395,-774.65,0.00022419,2]
[336935635,1725250246404,-762.7,0.00022419,2]
[336935636,1725250246413,-500.0,0.00022419,2]
[336935637,1725250246423,-500.0,0.00022419,2]
[336935638,1725250246433,-500.0,0.00022419,2]
[336935639,1725250246442,-500.0,0.00022419,2]
[336935640,1725250246451,-500.0,0.00022419,2]
[336935641,1725250246460,-500.0,0.00022419,2]
[336935642,1725250246469,-500.0,0.00022419,2]
[336935643,1725250246478,-500.0,0.00022419,2]
[336935644,1725250246488,-500.0,0.00022419,2]
[336935645,1725250246497,-500.0,0.00022419,2]
[336935646,1725250246506,-1535.09,0.00022419,2]
[336935647,1725250246515,-572.04,0.00022419,2]
[336935648,1725250246524,-1458.25,0.00022419,2]
[336935649,1725250246533,-500.0,0.00022419,2]
[336935650,1725250246543,-200.0,0.00022419,2]
[336935651,1725250246552,-951.0,0.00022419,2]
[336935652,1725250246561,-771.09,0.00022419,2]
[336935653,1725250246571,-500.0,0.00022419,2]
[336935654,1725250246583,-845.98,0.00022419,2]
[336935655,1725250246593,-985.85,0.00022419,2]
[336935656,1725250246602,-500.0,0.00022419,2]
[336935657,1725250246611,-1055.26,0.00022419,2]
[336935658,1725250246621,-500.0,0.00022419,2]
[336935659,1725250246630,-500.0,0.00022419,2]
[336935660,1725250246640,-758.93,0.00022419,2]
[336935661,1725250246649,-1984.53,0.00022419,2]
[336935662,1725250246658,-500.0,0.00022419,2]
[336935663,1725250246667,-500.0,0.00022419,2]
[336935664,1725250246676,-500.0,0.00022419,2]
[336935665,1725250246685,-661.94,0.00022419,2]
[336935666,1725250246694,-350.9412015,0.00022419,2]
[336935667,1725250246702,-500.0,0.00022419,2]
[336935668,1725250246711,-500.0,0.00022419,2]
[336935669,1725250246723,-515.30037065,0.00022419,2]
[336935670,1725250246732,-500.0,0.00022419,2]
[336935671,1725250246741,-500.0,0.00022419,2]
[336935672,1725250246750,-500.0,0.00022419,2]
[336935673,1725250246759,-500.0,0.00022419,2]
[336935674,1725250246768,-500.0,0.00022419,2]
[336935675,1725250246776,-2214.93,0.00022419,2]
[336935676,1725250246786,-712.0,0.00022419,2]
[336935677,1725250246795,-500.0,0.00022419,2]
[336935678,1725250246805,-500.0,0.00022419,2]
[336935679,1725250246814,-500.08117303,0.00022419,2]
[336935680,1725250246823,-500.0,0.00022419,2]
[336935681,1725250246832,-500.0,0.00022419,2]
[336935682,1725250246841,-500.0,0.00022419,2]
[336935683,1725250246850,-500.0,0.00022419,2]
[336935684,1725250246859,-1221.53,0.00022419,2]
[336935685,1725250246868,-500.0,0.00022419,2]
[336935686,1725250246879,-500.0,0.00022419,2]
[336935687,1725250246888,-500.0,0.00022419,2]
[336935688,1725250246897,-500.0,0.00022419,2]
[336935689,1725250246906,-1247.14,0.00022419,2]
[336935690,1725250246915,-500.0,0.00022419,2]
[336935691,1725250246924,-500.0,0.00022419,2]
[336935692,1725250246933,-500.0,0.00022419,2]
[336935693,1725250246944,-500.0,0.00022419,2]
[336935694,1725250246953,-500.0,0.00022419,2]
[336935695,1725250246962,-850.63,0.00022419,2]
[336935696,1725250246972,-610.82370863,0.00022419,2]
[336935697,1725250246981,-500.0,0.00022419,2]
[336935698,1725250246990,-500.0,0.00022419,2]
[336935699,1725250246999,-1018.47,0.00022419,2]
[336935700,1725250247008,-500.0,0.00022419,2]
[336935701,1725250247017,-524.48,0.00022419,2]
[336935702,1725250247026,-500.0,0.00022419,2]
[336935703,1725250247035,-500.0,0.00022419,2]
[336935704,1725250247044,-500.0,0.00022419,2]
[336935705,1725250247054,-406.26670462,0.00022419,2]
[336935706,1725250247063,-511.03,0.00022419,2]
[336935707,1725250247072,-775.03,0.00022419,2]
[336935708,1725250247081,-742.8,0.00022419,2]
[336935709,1725250247091,-500.0,0.00022419,2]
[336935710,1725250247100,-500.0,0.00022419,2]
[336935711,1725250247110,-500.0,0.00022419,2]
[336935712,1725250247119,-500.0,0.00022419,2]
[336935713,1725250247128,-500.0,0.00022419,2]
[336935714,1725250247137,-500.0,0.00022419,2]
[336935715,1725250247146,-500.0,0.00022419,2]
[336935716,1725250247155,-479.11129798,0.00022419,2]
[336935717,1725250247372,-303.17,0.00022419,2]
[336935718,1725250247387,-500.0,0.00022419,2]
[336935719,1725250247396,-500.0,0.00022419,2]
[336935720,1725250247405,-500.0,0.00022419,2]
[336935721,1725250247414,-500.0,0.00022419,2]
[336935722,1725250247423,-1070.91,0.00022419,2]
[336935723,1725250247432,-255.94420646,0.00022419,2]
[336935724,1725250247441,-572.19,0.00022419,2]
[336935725,1725250247451,-500.0,0.00022419,2]
[336935726,1725250247462,-500.0,0.00022419,2]
[336935727,1725250247471,-1307.47,0.00022419,2]
[336935728,1725250247482,-639.12,0.00022419,2]
[336935729,1725250247493,-500.0,0.00022419,2]
[336935730,1725250247504,-674.97,0.00022419,2]
[336935731,1725250247514,-500.0,0.00022419,2]
[336935732,1725250247525,-500.0,0.00022419,2]
[336935733,1725250247535,-151.0,0.00022419,7]
[336935734,1725250247544,-151.0,0.00022419,7]
[336935735,1725250247554,-151.0,0.00022419,7]
[336935736,1725250247564,-151.0,0.00022419,7]
[336935737,1725250247577,-500.0,0.00022419,2]
[336935738,1725250247595,-151.0,0.00022419,7]
[336935739,1725250247607,-151.0,0.00022419,7]
[336935740,1725250247618,-566.81,0.00022419,2]
[336935741,1725250247627,-207.923168,0.00022419,7]
[336935742,1725250247639,-680.86,0.00022419,2]
[336935743,1725250247649,-500.0,0.00022419,2]
[336935744,1725250247659,-500.0,0.00022419,2]
[336935745,1725250247668,-500.0,0.00022419,2]
[336935746,1725250247677,-500.0,0.00022419,2]
[336935747,1725250247685,-500.0,0.00022419,2]
[336935748,1725250247694,-500.0,0.00022419,2]
[336935749,1725250247703,-500.0,0.00022419,2]
[336935750,1725250247712,-500.0,0.00022419,2]
[336935751,1725250247721,-500.0,0.00022419,2]
[336935752,1725250247731,-500.0,0.00022419,2]
[336935753,1725250247741,-500.0,0.00022419,2]
[336935754,1725250247751,-500.0,0.00022419,2]
[336935755,1725250247760,-973.93,0.00022419,2]
[336935756,1725250247771,-500.0,0.00022419,2]
[336935757,1725250247783,-776.86,0.00022419,2]
[336935758,1725250247792,-500.0,0.00022419,2]
[336935759,1725250247801,-500.0,0.00022419,2]
[336935760,1725250247811,-500.0,0.00022419,2]
[336935761,1725250247821,-500.0,0.00022419,2]
[336935762,1725250247831,-500.0,0.00022419,2]
[336935763,1725250247841,-582.01263995,0.00022419,2]
[336935764,1725250548198,550.0,0.00011,2]
[336935765,1725250549283,600.0,0.00013,2]
[336935766,1725250650407,163.52,0.00024952,120]
[336935767,1725250742259,155.21,0.00010959,2]
[336935768,1725251112800,797.5910251,0.00027,120]
[336935785,1725251292396,240.25,0.0002542,120]
[336935787,1725251334242,-295.2,0.00018798,2]
[336935788,1725251334271,-478.04335161,0.000199,2]
[336935789,1725251334299,-150.5,0.0001997,30]
[336935790,1725251334327,-211.02,0.0001997,30]
[336935791,1725251334353,-150.5,0.0001998,30]
[336935792,1725251334381,-150.5,0.0001998,30]
[336935793,1725251334409,-150.75,0.0001999,2]
[336935794,1725251334436,-150.75,0.0001999,2]
[336935795,1725251334464,-150.75,0.0001999,2]
[336935796,1725251334492,-150.75,0.0001999,2]
[336935797,1725251334519,-150.75,0.0001999,2]
[336935798,1725251334546,-150.75,0.0001999,2]
[336935799,1725251334573,-150.75,0.0001999,2]
[336935800,1725251334600,-150.75,0.0001999,2]
[336935801,1725251334626,-150.75,0.0001999,2]
[336935802,1725251334652,-150.75,0.0001999,2]
[336935803,1725251334678,-150.75,0.0001999,2]
[336935804,1725251334707,-150.75,0.0001999,2]
[336935805,1725251334734,-150.75,0.0001999,2]
[336935806,1725251334761,-150.75,0.0001999,2]
[336935807,1725251334786,-150.75,0.0001999,2]
[336935808,1725251334813,-150.75,0.0001999,2]
[336935809,1725251334839,-150.75,0.0001999,2]
[336935810,1725251334867,-150.75,0.0001999,2]
[336935811,1725251334893,-150.75,0.0001999,2]
[336935812,1725251334920,-150.75,0.0001999,2]
[336935813,1725251334948,-150.75,0.0001999,2]
[336935814,1725251334975,-150.75,0.0001999,2]
[336935815,1725251335004,-5.83524865,0.0001999,2]
[336935816,1725251335041,-144.91475135,0.0001999,2]
[336935817,1725251335069,-150.75,0.0001999,2]
[336935818,1725251335095,-150.75,0.0001999,2]
[336935819,1725251335121,-150.75,0.0001999,2]
[336935820,1725251335150,-150.75,0.0001999,2]
[336935821,1725251335178,-150.75,0.0001999,2]
[336935822,1725251335206,-150.75,0.0001999,2]
[336935823,1725251335236,-150.75,0.0001999,2]
[336935824,1725251335263,-150.75,0.0001999,2]
[336935825,1725251335290,-150.75,0.0001999,2]
[336935826,1725251335316,-150.75,0.0001999,2]
[336935827,1725251335343,-150.75,0.0001999,2]
[336935828,1725251335369,-150.75,0.0001999,2]
[336935829,1725251335396,-150.75,0.0001999,2]
[336935830,1725251335422,-150.75,0.0001999,2]
[336935831,1725251335451,-150.75,0.0001999,2]
[336935832,1725251335478,-150.75,0.0001999,2]